Workbook

Sheet Additions
B7: CAPACITY ADDITIONS
B8: SCGT | H8: Reciprocating Internal Combustion Engine
A9: YEAR | B9: WIN | C9: SUM | H9: WIN | I9: SUM
A10: 2024
A11: =A10+1 -> 2025 | B11: 20 | C11: 20
A12: =A11+1 -> 2026 | B12: 20 | C12: 20
A13: 2027 | B13: 20 | C13: 20
A14: 2028 | B14: 20 | C14: 20
A15: 2029 | B15: 20 | C15: 20
A16: 2030 | B16: 20 | C16: 20
A17: 2031 | B17: 20 | C17: 20
A18: 2032 | B18: 20 | C18: 20
A19: 2033 | B19: 20 | C19: 20
A20: 2034 | B20: 20 | C20: 20
A21: 2035 | B21: 20 | C21: 20
A22: 2036 | B22: 20 | C22: 20
A23: 2037 | B23: 20 | C23: 20
A24: 2038 | B24: 20 | C24: 20
A25: 2039 | B25: 20 | C25: 20
A26: 2040 | B26: 20 | C26: 20
A27: 2041 | B27: 20 | C27: 20
A28: 2042 | B28: 20 | C28: 20
A29: 2043 | B29: 20 | C29: 20

Sheet LoadForecast
A1: Load Forecast | S1: LOAD
B2: Jan | C2: Feb | D2: Mar | E2: Apr | F2: May | G2: Jun | H2: Jul | I2: Aug | J2: Sep | K2: Oct | L2: Nov | M2: Dec | N2: Winter Peak | O2: Summer Peak | S2: GROWTH
A3: 2024 | B3: 3349.36 | C3: 3038.4 | D3: 2893.97 | E3: 2293.16 | F3: 2232.38 | G3: 2458.67 | H3: 2558.14 | I3: 2458.72 | J3: 2358.96 | K3: 2159.7 | L3: 2626.17 | M3: 3013.86 | N3: =MAX(B3:C3,M3) -> 3349.36 | O3: =MAX(G3:J3) -> 2558.14 | S3: =3300-N3 -> -49.36
A4: 2025 | B4: 3369.61 | C4: 3111.82 | D4: 2879.53 | E4: 2255.27 | F4: 2346.75 | G4: 2491.57 | H4: 2590.02 | I4: 2491.6 | J4: 2391.79 | K4: 2221.63 | L4: 2779.07 | M4: 3124.6 | N4: 3369.61 | O4: 2590.02 | S4: =N4-N3 -> 20.25
A5: 2026 | B5: 3400.15 | C5: 3165.8 | D5: 2887.63 | E5: 2383.96 | F5: 2323.78 | G5: 2505.54 | H5: 2603.2 | I5: 2505.53 | J5: 2405.62 | K5: 2274.65 | L5: 2808.52 | M5: 3120.26 | N5: 3400.15 | O5: 2603.2 | S5: 30.54
A6: 2027 | B6: 3419.38 | C6: 3181.43 | D6: 2965.68 | E6: 2397.5 | F6: 2363.58 | G6: 2520.68 | H6: 2618.51 | I6: 2520.51 | J6: 2420.61 | K6: 2348.04 | L6: 2846.21 | M6: 3174.7 | N6: 3419.38 | O6: 2618.51 | S6: 19.23
A7: 2028 | B7: 3452.3 | C7: 3223.87 | D7: 3042.88 | E7: 2338.35 | F7: 2361.63 | G7: 2541.9 | H7: 2640.23 | I7: 2541.88 | J7: 2442.08 | K7: 2359.79 | L7: 2825.81 | M7: 3121.29 | N7: 3452.3 | O7: 2640.23 | S7: 32.92
A8: 2029 | B8: 3466.98 | C8: 3263.24 | D8: 3045.46 | E8: 2424.92 | F8: 2376.73 | G8: 2558.07 | H8: 2655.67 | I8: 2557.99 | J8: 2458.16 | K8: 2350.88 | L8: 2834.54 | M8: 3155.93 | N8: 3466.98 | O8: 2655.67 | S8: 14.68
A9: 2030 | B9: 3483.84 | C9: 3270.6 | D9: 3057 | E9: 2438.44 | F9: 2384.71 | G9: 2571.4 | H9: 2669.11 | I9: 2571.43 | J9: 2471.59 | K9: 2332.86 | L9: 2806.63 | M9: 3176.83 | N9: 3483.84 | O9: 2669.11 | S9: 16.86
A10: 2031 | B10: 3503.66 | C10: 3283.18 | D10: 3026.92 | E10: 2383.83 | F10: 2437.6 | G10: 2588.86 | H10: 2686.41 | I10: 2588.89 | J10: 2489.06 | K10: 2342.17 | L10: 2899.76 | M10: 3258.45 | N10: 3503.66 | O10: 2686.41 | S10: 19.82
A11: 2032 | B11: 3535.1 | C11: 3306.88 | D11: 3057.75 | E11: 2469.89 | F11: 2437.14 | G11: 2609.46 | H11: 2708.09 | I11: 2609.36 | J11: 2509.37 | K11: 2417.63 | L11: 2933.07 | M11: 3272.14 | N11: 3535.1 | O11: 2708.09 | S11: 31.44
A12: 2033 | B12: 3551.2 | C12: 3324.08 | D12: 3118.22 | E12: 2442.16 | F12: 2459.72 | G12: 2628.97 | H12: 2726.78 | I12: 2628.95 | J12: 2529.07 | K12: 2418.81 | L12: 2947.51 | M12: 3213.25 | N12: 3551.2 | O12: 2726.78 | S12: 16.1
A13: 2034 | B13: 3577.93 | C13: 3381.56 | D13: 3144.46 | E13: 2406.81 | F13: 2449.37 | G13: 2650.63 | H13: 2748.19 | I13: 2650.6 | J13: 2550.77 | K13: 2437.57 | L13: 2921.72 | M13: 3228.62 | N13: 3577.93 | O13: 2748.19 | S13: 26.73
A14: 2035 | B14: 3606.8 | C14: 3405.81 | D14: 3157.58 | E14: 2513.77 | F14: 2469.53 | G14: 2673.21 | H14: 2770.85 | I14: 2673.13 | J14: 2573.28 | K14: 2444.5 | L14: 2940.38 | M14: 3251.46 | N14: 3606.8 | O14: 2770.85 | S14: 28.87
A15: 2036 | B15: 3651.36 | C15: 3423.34 | D15: 3144.25 | E15: 2481.25 | F15: 2533.08 | G15: 2705.06 | H15: 2803.5 | I15: 2705.11 | J15: 2605.24 | K15: 2430.32 | L15: 2991.82 | M15: 3369.94 | N15: 3651.36 | O15: 2803.5 | S15: 44.56
A16: 2037 | B16: 3672.98 | C16: 3442.63 | D16: 3111.09 | E16: 2543.39 | F16: 2504.29 | G16: 2729.97 | H16: 2827.76 | I16: 2730.01 | J16: 2630.01 | K16: 2440.23 | L16: 3020.79 | M16: 3371.88 | N16: 3672.98 | O16: 2827.76 | S16: 21.62
A17: 2038 | B17: 3704.11 | C17: 3456.64 | D17: 3193.46 | E17: 2585.01 | F17: 2562.48 | G17: 2756.14 | H17: 2854.06 | I17: 2756.03 | J17: 2656.02 | K17: 2506.65 | L17: 3061.37 | M17: 3416.8 | N17: 3704.11 | O17: 2854.06 | S17: 31.13
A18: 2039 | B18: 3734.46 | C18: 3500.98 | D18: 3256.01 | E18: 2560.66 | F18: 2586.31 | G18: 2781.42 | H18: 2879.39 | I18: 2781.45 | J18: 2681.51 | K18: 2529.1 | L18: 3091.57 | M18: 3369.33 | N18: 3734.46 | O18: 2879.39 | S18: 30.35
A19: 2040 | B19: 3773.49 | C19: 3541.49 | D19: 3289.32 | E19: 2621.6 | F19: 2577.94 | G19: 2807.83 | H19: 2906.44 | I19: 2807.76 | J19: 2707.87 | K19: 2544.95 | L19: 3064.94 | M19: 3392.74 | N19: 3773.49 | O19: 2906.44 | S19: 39.03
A20: 2041 | B20: 3794.46 | C20: 3537.01 | D20: 3311.06 | E20: 2642.37 | F20: 2595.16 | G20: 2832.32 | H20: 2930.27 | I20: 2832.45 | J20: 2732.52 | K20: 2516.61 | L20: 3060.13 | M20: 3441.28 | N20: 3794.46 | O20: 2930.27 | S20: 20.97
A21: 2042 | B21: 3822.06 | C21: 3570.32 | D21: 3280.65 | E21: 2591.51 | F21: 2659.07 | G21: 2857.2 | H21: 2955.03 | I21: 2857.28 | J21: 2757.36 | K21: 2526.34 | L21: 3102.71 | M21: 3516.17 | N21: 3822.06 | O21: 2955.03 | S21: 27.6
A22: 2043 | B22: 3879.4 | C22: 3623.87 | D22: 3329.86 | E22: 2630.38 | F22: 2698.96 | G22: 2900.06 | H22: 2999.35 | I22: 2900.14 | J22: 2798.72 | K22: 2564.24 | L22: 3149.25 | M22: 3568.92 | N22: 3879.4 | O22: 2999.35 | S22: 57.34
R27: AVOIDED COST AVERAGE
R28: 10 year avg | S28: =AVERAGE(S3:S12) -> 15.248
R29: 15 year avg | S29: =AVERAGE(S3:S17) -> 20.35933333

Sheet CapCosts
H1: GAS | O1: GAS
H2: Peaking | O2: Intermediate | U2: Reciprocating Internal Combustion Engine (RICE)
I3: FCR | L3: FCR | O3: CC
H4: 0 | I4: ='AC Cost'!$O$9 -> 0.111 | K4: 100 | L4: ='AC Cost'!$O$9 -> 0.111 | O4: 0 | P4: 0 | R4: 0 | S4: 0 | U4: 216 | V4: ='AC Cost'!$O$9 -> 0.111
A5: ESC
A6: RICE | B6: GAS | H6: $/kW | I6: K$/Yr | K6: $/kW | L6: K$/Yr | O6: $/kW | P6: K$/Yr | R6: $/kW | S6: K$/Yr | U6: $/kW | V6: K$/Yr
C7: 2010
C8: 2012 | D8: 0 | E8: =ROUND(D8*$D$4*$E$4,-2) -> 0 | H8: 0 | I8: =ROUND(H8*$H$4*$I$4,-2) -> 0 | K8: 0 | L8: =ROUND(K8*$K$4*$L$4,-2) -> 0 | O8: 0 | P8: =ROUND(O8*$O$4*$P$4,-2) -> 0 | R8: 0 | S8: =ROUND(R8*$R$4*$S$4,-2) -> 0 | V8: =ROUND(U8*$U$4*$V$4,-2) -> 0
C9: =C8+1 -> 2013 | D9: =D8*(($A9/100)+1) -> 0 | E9: 0 | H9: =H8*(($B9/100)+1) -> 0 | I9: 0 | K9: =K8*(($B9/100)+1) -> 0 | L9: 0 | O9: 0 | P9: 0 | R9: 0 | S9: 0 | V9: 0
C10: 2014 | D10: 0 | E10: 0 | H10: 0 | I10: 0 | K10: 0 | L10: 0 | O10: 0 | P10: 0 | R10: 0 | S10: 0 | V10: 0
C11: 2015 | D11: 0 | E11: 0 | H11: 0 | I11: 0 | K11: 0 | L11: 0 | O11: 0 | P11: 0 | R11: 0 | S11: 0 | V11: 0
C12: 2016 | D12: 0 | E12: 0 | H12: 0 | I12: 0 | K12: 0 | L12: 0 | O12: 0 | P12: 0 | R12: 0 | S12: 0 | V12: 0
C13: 2017 | D13: 0 | E13: 0 | H13: 0 | I13: 0 | K13: 0 | L13: 0 | O13: 0 | P13: 0 | R13: 0 | S13: 0 | V13: 0
C14: 2018 | D14: 0 | E14: 0 | H14: 0 | I14: 0 | K14: 0 | L14: 0 | O14: 0 | P14: 0 | R14: 0 | S14: 0 | V14: 0
C15: 2019 | D15: 0 | E15: 0 | H15: 0 | I15: 0 | K15: 0 | L15: 0 | O15: 0 | P15: 0 | R15: 0 | S15: 0 | V15: 0
C16: 2020 | D16: 0 | E16: 0 | H16: 0 | I16: 0 | K16: 0 | L16: 0 | O16: 0 | P16: 0 | R16: 0 | S16: 0 | V16: 0
C17: 2021 | D17: 0 | E17: 0 | H17: 0 | I17: 0 | K17: 0 | L17: 0 | O17: 0 | P17: 0 | R17: 0 | S17: 0 | V17: 0
C18: 2022 | D18: 0 | E18: 0 | H18: 0 | I18: 0 | K18: 0 | L18: 0 | O18: 0 | P18: 0 | R18: 0 | S18: 0 | V18: 0
C19: 2023 | D19: 0 | E19: 0 | H19: 0 | I19: 0 | K19: 0 | L19: 0 | O19: 0 | P19: 0 | R19: 0 | S19: 0 | V19: 0
A20: 2.4 | B20: 2.4 | C20: 2024 | D20: 0 | E20: 0 | H20: 0 | I20: 0 | K20: 1103 | L20: 12200 | O20: 0 | P20: 0 | R20: 0 | S20: 0 | U20: 2200 | V20: 52700
A21: 2.4 | B21: 2.4 | C21: 2025 | D21: 0 | E21: 0 | H21: 0 | I21: 0 | K21: 1129.472 | L21: 12500 | O21: 0 | P21: 0 | R21: 0 | S21: 0 | U21: =U20*(($B21/100)+1) -> 2252.8 | V21: 54000
A22: 2.4 | B22: 2.4 | C22: 2026 | D22: 0 | E22: 0 | H22: 0 | I22: 0 | K22: 1156.579328 | L22: 12800 | O22: 0 | P22: 0 | R22: 0 | S22: 0 | U22: 2306.8672 | V22: 55300
A23: 2.4 | B23: 2.4 | C23: 2027 | D23: 0 | E23: 0 | H23: 0 | I23: 0 | K23: 1184.337232 | L23: 13100 | O23: 0 | P23: 0 | R23: 0 | S23: 0 | U23: 2362.232013 | V23: 56600
A24: 2.4 | B24: 2.4 | C24: 2028 | D24: 0 | E24: 0 | H24: 0 | I24: 0 | K24: 1212.761325 | L24: 13500 | O24: 0 | P24: 0 | R24: 0 | S24: 0 | U24: 2418.925581 | V24: 58000
A25: 2.4 | B25: 2.4 | C25: 2029 | D25: 0 | E25: 0 | H25: 0 | I25: 0 | K25: 1241.867597 | L25: 13800 | O25: 0 | P25: 0 | R25: 0 | S25: 0 | U25: 2476.979795 | V25: 59400
A26: 2.4 | B26: 2.4 | C26: 2030 | D26: 0 | E26: 0 | H26: 0 | I26: 0 | K26: 1271.67242 | L26: 14100 | O26: 0 | P26: 0 | R26: 0 | S26: 0 | U26: 2536.42731 | V26: 60800
A27: 2.4 | B27: 2.4 | C27: 2031 | D27: 0 | E27: 0 | H27: 0 | I27: 0 | K27: 1302.192558 | L27: 14500 | O27: 0 | P27: 0 | R27: 0 | S27: 0 | U27: 2597.301566 | V27: 62300
A28: 2.4 | B28: 2.4 | C28: 2032 | D28: 0 | E28: 0 | H28: 0 | I28: 0 | K28: 1333.445179 | L28: 14800 | O28: 0 | P28: 0 | R28: 0 | S28: 0 | U28: 2659.636803 | V28: 63800
A29: 2.4 | B29: 2.4 | C29: 2033 | D29: 0 | E29: 0 | H29: 0 | I29: 0 | K29: 1365.447863 | L29: 15200 | O29: 0 | P29: 0 | R29: 0 | S29: 0 | U29: 2723.468086 | V29: 65300
A30: 2.4 | B30: 2.4 | C30: 2034 | D30: 0 | E30: 0 | H30: 0 | I30: 0 | K30: 1398.218612 | L30: 15500 | O30: 0 | P30: 0 | R30: 0 | S30: 0 | U30: 2788.831321 | V30: 66900
A31: 2.4 | B31: 2.4 | C31: 2035 | D31: 0 | E31: 0 | H31: 0 | I31: 0 | K31: 1431.775859 | L31: 15900 | O31: 0 | P31: 0 | R31: 0 | S31: 0 | U31: 2855.763272 | V31: 68500
A32: 2.4 | B32: 2.4 | C32: 2036 | D32: 0 | E32: 0 | H32: 0 | I32: 0 | K32: 1466.138479 | L32: 16300 | O32: 0 | P32: 0 | R32: 0 | S32: 0 | U32: 2924.301591 | V32: 70100
A33: 2.4 | B33: 2.4 | C33: 2037 | D33: 0 | E33: 0 | H33: 0 | I33: 0 | K33: 1501.325803 | L33: 16700 | O33: 0 | P33: 0 | R33: 0 | S33: 0 | U33: 2994.484829 | V33: 71800
A34: 2.4 | B34: 2.4 | C34: 2038 | D34: 0 | E34: 0 | H34: 0 | I34: 0 | K34: 1537.357622 | L34: 17100 | O34: 0 | P34: 0 | R34: 0 | S34: 0 | U34: 3066.352465 | V34: 73500
A35: 2.4 | B35: 2.4 | C35: 2039 | D35: 0 | E35: 0 | H35: 0 | I35: 0 | K35: 1574.254205 | L35: 17500 | O35: 0 | P35: 0 | R35: 0 | S35: 0 | U35: 3139.944924 | V35: 75300
A36: 2.4 | B36: 2.4 | C36: 2040 | D36: 0 | E36: 0 | H36: 0 | I36: 0 | K36: 1612.036306 | L36: 17900 | O36: 0 | P36: 0 | R36: 0 | S36: 0 | U36: 3215.303602 | V36: 77100
A37: 2.4 | B37: 2.4 | C37: 2041 | D37: 0 | E37: 0 | H37: 0 | I37: 0 | K37: 1650.725177 | L37: 18300 | O37: 0 | P37: 0 | R37: 0 | S37: 0 | U37: 3292.470889 | V37: 78900
A38: 2.4 | B38: 2.4 | C38: 2042 | D38: 0 | E38: 0 | H38: 0 | I38: 0 | K38: 1690.342582 | L38: 18800 | O38: 0 | P38: 0 | R38: 0 | S38: 0 | U38: 3371.49019 | V38: 80800
A39: 2.4 | B39: 2.4 | C39: 2043 | D39: 0 | E39: =ROUND(D39*$D$4*$E$4,-2) -> 0 | H39: 0 | I39: =ROUND(H39*$H$4*$I$4,-2) -> 0 | K39: 1730.910804 | L39: =ROUND(K39*$K$4*$L$4,-2) -> 19200 | O39: 0 | P39: =ROUND(O39*$O$4*$P$4,-2) -> 0 | R39: 0 | S39: =ROUND(R39*$R$4*$S$4,-2) -> 0 | U39: 3452.405954 | V39: =ROUND(U39*$U$4*$V$4,-2) -> 82800
A40: 2.4 | B40: 2.4 | C40: 2044 | D40: 0 | E40: =ROUND(D40*$D$4*$E$4,-2) -> 0 | H40: 0 | I40: =ROUND(H40*$H$4*$I$4,-2) -> 0 | K40: 1772.452663 | L40: =ROUND(K40*$K$4*$L$4,-2) -> 19700 | O40: 0 | P40: =ROUND(O40*$O$4*$P$4,-2) -> 0 | R40: 0 | S40: =ROUND(R40*$R$4*$S$4,-2) -> 0 | U40: 3535.263697 | V40: =ROUND(U40*$U$4*$V$4,-2) -> 84800
A41: 2.4 | B41: 2.4 | C41: 2045 | D41: 0 | E41: 0 | H41: 0 | I41: 0 | K41: 1814.991527 | L41: 20100 | O41: 0 | P41: 0 | R41: 0 | S41: 0 | U41: 3620.110026 | V41: 86800
A42: 2.4 | B42: 2.4 | C42: 2046 | D42: 0 | E42: 0 | H42: 0 | I42: 0 | K42: 1858.551323 | L42: 20600 | O42: 0 | P42: 0 | R42: 0 | S42: 0 | U42: 3706.992667 | V42: 88900
A43: 2.4 | B43: 2.4 | C43: 2047 | D43: 0 | E43: 0 | H43: 0 | I43: 0 | K43: 1903.156555 | L43: 21100 | O43: 0 | P43: 0 | R43: 0 | S43: 0 | U43: 3795.960491 | V43: 91000
A44: 2.4 | B44: 2.4 | C44: 2048 | D44: 0 | E44: 0 | H44: 0 | I44: 0 | K44: 1948.832312 | L44: 21600 | O44: 0 | P44: 0 | R44: 0 | S44: 0 | U44: 3887.063543 | V44: 93200
A45: 2.4 | B45: 2.4 | C45: 2049 | D45: 0 | E45: 0 | H45: 0 | I45: 0 | K45: 1995.604288 | L45: 22200 | O45: 0 | P45: 0 | R45: 0 | S45: 0 | U45: 3980.353068 | V45: 95400
A46: 2.4 | B46: 2.4 | C46: 2050 | D46: 0 | E46: 0 | H46: 0 | I46: 0 | K46: 2043.498791 | L46: 22700 | O46: 0 | P46: 0 | R46: 0 | S46: 0 | U46: 4075.881541 | V46: 97700
A47: 2.4 | B47: 2.4 | C47: 2051 | D47: 0 | E47: 0 | H47: 0 | I47: 0 | K47: 2092.542762 | L47: 23200 | O47: 0 | P47: 0 | R47: 0 | S47: 0 | U47: 4173.702698 | V47: 100100
A48: 2.4 | B48: 2.4 | C48: 2052 | D48: 0 | E48: 0 | H48: 0 | I48: 0 | K48: 2142.763788 | L48: 23800 | O48: 0 | P48: 0 | R48: 0 | S48: 0 | U48: 4273.871563 | V48: 102500
A49: 2.4 | B49: 2.4 | C49: 2053 | D49: 0 | E49: 0 | H49: 0 | I49: 0 | K49: 2194.190119 | L49: 24400 | O49: 0 | P49: 0 | R49: 0 | S49: 0 | U49: 4376.44448 | V49: 104900
A50: 2.4 | B50: 2.4 | C50: 2054 | D50: 0 | E50: 0 | H50: 0 | I50: 0 | K50: 2246.850682 | L50: 24900 | O50: 0 | P50: 0 | R50: 0 | S50: 0 | U50: 4481.479148 | V50: 107400
A51: 2.4 | B51: 2.4 | C51: 2055 | D51: 0 | E51: 0 | H51: 0 | I51: 0 | K51: 2300.775098 | L51: 25500 | O51: 0 | P51: 0 | R51: 0 | S51: 0 | U51: 4589.034647 | V51: 110000
A52: 2.4 | B52: 2.4 | C52: 2056 | D52: 0 | E52: 0 | H52: 0 | I52: 0 | K52: 2355.993701 | L52: 26200 | O52: 0 | P52: 0 | R52: 0 | S52: 0 | U52: 4699.171479 | V52: 112700
A53: 2.4 | B53: 2.4 | C53: 2057 | D53: 0 | E53: =ROUND(D53*$D$4*$E$4,-2) -> 0 | H53: 0 | I53: =ROUND(H53*$H$4*$I$4,-2) -> 0 | K53: 2412.537549 | L53: =ROUND(K53*$K$4*$L$4,-2) -> 26800 | O53: 0 | P53: =ROUND(O53*$O$4*$P$4,-2) -> 0 | R53: 0 | S53: =ROUND(R53*$R$4*$S$4,-2) -> 0 | U53: 4811.951595 | V53: =ROUND(U53*$U$4*$V$4,-2) -> 115400
A54: 2.4 | B54: 2.4 | C54: 2058 | D54: 0 | E54: 0 | H54: 0 | I54: 0 | K54: 2470.438451 | L54: 27400 | O54: 0 | P54: 0 | R54: 0 | S54: 0 | U54: 4927.438433 | V54: 118100
A55: 2.4 | B55: 2.4 | C55: 2059 | D55: 0 | E55: 0 | H55: 0 | I55: 0 | K55: 2529.728973 | L55: 28100 | O55: 0 | P55: 0 | R55: 0 | S55: 0 | U55: 5045.696955 | V55: 121000
A56: 2.4 | B56: 2.4 | C56: 2060 | D56: 0 | E56: 0 | H56: 0 | I56: 0 | K56: 2590.442469 | L56: 28800 | O56: 0 | P56: 0 | R56: 0 | S56: 0 | U56: 5166.793682 | V56: 123900

Sheet AC Cost
A1: INPUT DATA: | X1: EAST KENTUCKY POWER COOPERATIVE AVOIDED CAPACITY COSTS | AF1: REVISION DATE:
B2: ITERATION BASE YEAR: | E2: 2024 | J2: CARRYING CHARGE RATES | O2: GENERATION | Q2: TRANSMISSION | X2: Year | Y2: Base | Z2: Deferred | AF2: =TODAY() -> 2024-05-29
C3: STUDY TERM | E3: 10 | F3: YRS | O3: GAS | P3: RICE | S3: FCR | T3: Dep | U3: Int | V3: TIER | W3: Tax & Ins | X3: 2024 | Y3: 368754.7593 | Z3: 363304.6373
C4: CONSTR NG: | E4: 2 | F4: YRS | M4: INTEREST RATE | N4: 0.045 | O4: 0.06 | P4: 0.06 | Q4: =N10 -> 0.045 | R4: RICE | S4: =(T4+(U4*V4)+W4)/100 -> 0.111 | T4: 2.5 | U4: 6 | V4: 1.35 | W4: 0.5 | X4: 2025 | Y4: 420882.0454 | Z4: 415299.1639 | AC4: To run macro:
C5: CONSTR RICE: | E5: 2 | F5: YRS | M5: SINKING FUND DEPRECIATION RATE (30 YEARS) | N5: =N4/(((1+N4)^40)-1) -> 0.00934314661 | O5: 0.025 | P5: 0.025 | Q5: =Q4/(((1+Q4)^35)-1) -> 0.01227044784 | R5: GAS | S5: =(T5+(U5*V5)+W5)/100 -> 0.111 | T5: 2.5 | U5: 6 | V5: 1.35 | W5: 0.5 | X5: 2026 | Y5: 431117.0885 | Z5: 425398.2026 | AC5: CTRL-H
C6: LEADTIME SEASONAL: | E6: 0 | F6: YR | L6: MARGINS (TIER): | M6: 1.35 | N6: =($M$6-1)*N4 -> 0.01575 | O6: =($M$6-1)*O4 -> 0.021 | P6: =($M$6-1)*P4 -> 0.021 | Q6: =($M$6-1)*Q4 -> 0.01575 | X6: 2027 | Y6: 441602.5286 | Z6: 435744.3137 | AC6: or
C7: LEADTIME, L-T PURCH: | E7: 2 | F7: YRS | L7: TAXES & INSURANCE RATE | N7: 0.005 | O7: 0.005 | P7: 0.005 | Q7: 0.004265 | X7: 2028 | Y7: 452344.529 | Z7: 446343.579 | AC7: Click!
M8: OPERATION AND MAINTENANCE RATE | Q8: 0.04 | X8: 2029 | Y8: 463349.4057 | Z8: 457202.2307
M9: CARRYING CHARGE RATE | N9: 0.045 | O9: =SUM(O4:O8) -> 0.111 | P9: =SUM(P4:P8) -> 0.111 | Q9: =SUM(Q4:Q8) -> 0.1172854478 | X9: 2030 | Y9: 474623.6313 | Z9: 468326.6559
M10: INTEREST RATE: | N10: 0.045 | X10: 2031 | Y10: 486173.8385 | Z10: 479723.3995
M11: DISCOUNT RATE: | N11: 0.045 | X11: 2032 | Y11: 498006.8249 | Z11: 491399.169
A12: BASE PLAN PRESENT WORTH ANALYSIS | X12: 2033 | Y12: 510129.5562 | Z12: 503360.838
B14: GAS | I14: Reciprocating Internal Combustion Engine (RICE) | N14: TRANSMISSION | R14: LONG TERM PURCH | V14: FIXED O&M | AC14: SEASONAL PURCHASES | AG14: PRESENT WORTH
C15: CC | D15: CC | E15: CT | F15: CT | G15: TOTAL | H15: P.W. of | L15: TOTAL | M15: P.W. of | P15: TOTAL | Q15: P.W. of | U15: (6Mo) | V15: GAS | X15: RICE | Z15: L-T Purch | AB15: TOTAL | AE15: TOTAL | AF15: TOTAL | AG15: OF
B16: ESC. | G16: COST | H16: PMTS | I16: ESC | L16: COST | M16: PMTS (1) | N16: ESC | P16: COST | Q16: PMTS | R16: ESC. | S16: $/kW- | T16: AVG | U16: TOT COST | V16: ESC | X16: ESC | Z16: ESC | AB16: COST | AD16: AVG. | AE16: COST | AF16: ANNUAL COSTS | AG16: ANNUAL COSTS
A17: YEAR | B17: (%) | C17: $/KW | D17: MW | E17: $/KW | F17: MW | G17: ($1000) | H17: ($1000) | I17: (%) | J17: $/KW | K17: MW | L17: ($1000) | M17: ($1000) | N17: (%) | O17: $/KW | P17: ($1000) | Q17: ($1000) | R17: (%) | S17: Mo. | T17: MW | U17: ($1000) | V17: (%) | W17: ($/kW) | X17: (%) | Y17: ($/kW) | Z17: (%) | AA17: ($/kW) | AB17: ($1000) | AC17: $/kW-Mo | AD17: MW | AE17: ($1000) | AF17: ($1000) | AG17: ($1000)
A18: =CapCosts!C20 -> 2024 | B18: =CapCosts!B20 -> 2.4 | C18: =CapCosts!O11 -> 0 | D18: =IF(A18>$E$2+$E$3-1,0,IF(A18<$E$2,0,Additions!E10)) -> 0 | E18: =CapCosts!K20 -> 1103 | F18: =IF(A18>$E$2+$E$3-1,0,IF(A18<$E$2,0,Additions!C10)) -> 0 | G18: =C18*D18+E18*F18 -> 0 | H18: =PV($N$11,32,-$P$9*G18) -> 0 | I18: =CapCosts!A20 -> 2.4 | J18: =CapCosts!U20 -> 2200 | K18: =IF(A18>$E$2+$E$3-1,0,IF(A18<$E$2,0,Additions!H10)) -> 0 | L18: =J18*K18 -> 0 | M18: =PV($N$11,32,-$P$9*'AC Cost'!L18) -> 0 | N18: 3 | O18: 88.55 | P18: =IF(A18<$E$2,0,(D19+F19+K19)*O18) -> 1771 | Q18: =PV($N$11,32,-$Q$9*P18) -> 3487.262965 | R18: 3 | S18: 3.07 | T18: =IF($A18>$E$2+$E$3-1,0,IF($A18<$E$2,0,Additions!F10)) -> 0 | U18: =S18*T18*6 -> 0 | V18: 1.5 | W18: 5.83 | X18: 1.5 | Y18: 5.83 | Z18: 1.5 | AA18: 0 | AB18: =IF($A18>$E$2+$E$3-1,0,(SUM($D$18:D18)+SUM($F$18:F18))*W18+SUM($K$18:K18)*Y18+SUM($U$18:U18)*AA18) -> 0 | AF18: =H18+M18+Q18+U18+AB18 -> 3487.262965 | AG18: =PV($N$11,A18-$E$2,,-AF18,) -> 3487.262965
A19: =A18+1 -> 2025 | B19: =CapCosts!B21 -> 2.4 | C19: =CapCosts!O12 -> 0 | D19: =IF(A19>$E$2+$E$3-1,0,IF(A19<$E$2,0,Additions!E11)) -> 0 | E19: =CapCosts!K21 -> 1129.472 | F19: =IF(A19>$E$2+$E$3-1,0,IF(A19<$E$2,0,Additions!C11)) -> 20 | G19: =C19*D19+E19*F19 -> 22589.44 | H19: 42096.93235 | I19: =CapCosts!A21 -> 2.4 | J19: =CapCosts!U21 -> 2252.8 | K19: =IF(A19>$E$2+$E$3-1,0,IF(A19<$E$2,0,Additions!H11)) -> 0 | L19: =J19*K19 -> 0 | M19: =PV($N$11,32,-$P$9*'AC Cost'!L19) -> 0 | N19: 3 | O19: =O18*(1+N19/100) -> 91.2065 | P19: =IF(A19<$E$2,0,(D20+F20+K20)*O19) -> 1824.13 | Q19: 3591.880854 | R19: 3 | S19: =S18*(1+R19/100) -> 3.1621 | T19: =IF($A19>$E$2+$E$3-1,0,IF($A19<$E$2,0,Additions!F11)) -> 0 | U19: =S19*T19*6 -> 0 | V19: 1.5 | W19: =W18*(1+V19/100) -> 5.91745 | X19: 1.5 | Y19: =Y18*(1+X19/100) -> 5.91745 | Z19: 1.5 | AA19: =AA18*(1+Z19/100) -> 0 | AB19: =IF($A19>$E$2+$E$3-1,0,(SUM($D$18:D19)+SUM($F$18:F19))*W19+SUM($K$18:K19)*Y19+SUM($U$18:U19)*AA19) -> 118.349 | AF19: =H19+M19+Q19+U19+AB19 -> 45807.16221 | AG19: 43834.60498
A20: =A19+1 -> 2026 | B20: =CapCosts!B22 -> 2.4 | C20: =CapCosts!O13 -> 0 | D20: =IF(A20>$E$2+$E$3-1,0,IF(A20<$E$2,0,Additions!E12)) -> 0 | E20: =CapCosts!K22 -> 1156.579328 | F20: =IF(A20>$E$2+$E$3-1,0,IF(A20<$E$2,0,Additions!C12)) -> 20 | G20: =C20*D20+E20*F20 -> 23131.58656 | H20: 43107.25873 | I20: =CapCosts!A22 -> 2.4 | J20: =CapCosts!U22 -> 2306.8672 | K20: =IF(A20>$E$2+$E$3-1,0,IF(A20<$E$2,0,Additions!H12)) -> 0 | L20: 0 | M20: =PV($N$11,32,-$P$9*'AC Cost'!L20) -> 0 | N20: 3 | O20: =O19*(1+N20/100) -> 93.942695 | P20: 1878.8539 | Q20: 3699.63728 | R20: 3 | S20: =S19*(1+R20/100) -> 3.256963 | T20: =IF($A20>$E$2+$E$3-1,0,IF($A20<$E$2,0,Additions!F12)) -> 0 | U20: 0 | V20: 1.5 | W20: =W19*(1+V20/100) -> 6.00621175 | X20: 1.5 | Y20: =Y19*(1+X20/100) -> 6.00621175 | Z20: 1.5 | AA20: =AA19*(1+Z20/100) -> 0 | AB20: =IF($A20>$E$2+$E$3-1,0,(SUM($D$18:D20)+SUM($F$18:F20))*W20+SUM($K$18:K20)*Y20+SUM($U$18:U20)*AA20) -> 240.24847 | AF20: 47047.14448 | AG20: 43082.47932
A21: 2027 | B21: =CapCosts!B23 -> 2.4 | C21: =CapCosts!O14 -> 0 | D21: =IF(A21>$E$2+$E$3-1,0,IF(A21<$E$2,0,Additions!E13)) -> 0 | E21: =CapCosts!K23 -> 1184.337232 | F21: =IF(A21>$E$2+$E$3-1,0,IF(A21<$E$2,0,Additions!C13)) -> 20 | G21: 23686.74464 | H21: 44141.83294 | I21: =CapCosts!A23 -> 2.4 | J21: =CapCosts!U23 -> 2362.232013 | K21: =IF(A21>$E$2+$E$3-1,0,IF(A21<$E$2,0,Additions!H13)) -> 0 | L21: 0 | M21: =PV($N$11,32,-$P$9*'AC Cost'!L21) -> 0 | N21: 3 | O21: 96.76097585 | P21: 1935.219517 | Q21: 3810.626398 | R21: 3 | S21: 3.35467189 | T21: =IF($A21>$E$2+$E$3-1,0,IF($A21<$E$2,0,Additions!F13)) -> 0 | U21: 0 | V21: 1.5 | W21: 6.096304926 | X21: 1.5 | Y21: 6.096304926 | Z21: 1.5 | AA21: 0 | AB21: =IF($A21>$E$2+$E$3-1,0,(SUM($D$18:D21)+SUM($F$18:F21))*W21+SUM($K$18:K21)*Y21+SUM($U$18:U21)*AA21) -> 365.7782956 | AF21: 48318.23763 | AG21: 42341.10755
A22: 2028 | B22: =CapCosts!B24 -> 2.4 | C22: =CapCosts!O15 -> 0 | D22: =IF(A22>$E$2+$E$3-1,0,IF(A22<$E$2,0,Additions!E14)) -> 0 | E22: =CapCosts!K24 -> 1212.761325 | F22: =IF(A22>$E$2+$E$3-1,0,IF(A22<$E$2,0,Additions!C14)) -> 20 | G22: 24255.22651 | H22: 45201.23693 | I22: =CapCosts!A24 -> 2.4 | J22: =CapCosts!U24 -> 2418.925581 | K22: =IF(A22>$E$2+$E$3-1,0,IF(A22<$E$2,0,Additions!H14)) -> 0 | L22: 0 | M22: =PV($N$11,32,-$P$9*'AC Cost'!L22) -> 0 | N22: 3 | O22: 99.66380513 | P22: 1993.276103 | Q22: 3924.94519 | R22: 3 | S22: 3.455312047 | T22: =IF($A22>$E$2+$E$3-1,0,IF($A22<$E$2,0,Additions!F14)) -> 0 | U22: 0 | V22: 1.5 | W22: 6.1877495 | X22: 1.5 | Y22: 6.1877495 | Z22: 1.5 | AA22: 0 | AB22: =IF($A22>$E$2+$E$3-1,0,(SUM($D$18:D22)+SUM($F$18:F22))*W22+SUM($K$18:K22)*Y22+SUM($U$18:U22)*AA22) -> 495.01996 | AF22: 49621.20208 | AG22: 41610.42189
A23: 2029 | B23: =CapCosts!B25 -> 2.4 | C23: =CapCosts!O16 -> 0 | D23: =IF(A23>$E$2+$E$3-1,0,IF(A23<$E$2,0,Additions!E15)) -> 0 | E23: =CapCosts!K25 -> 1241.867597 | F23: =IF(A23>$E$2+$E$3-1,0,IF(A23<$E$2,0,Additions!C15)) -> 20 | G23: 24837.35194 | H23: 46286.06661 | I23: =CapCosts!A25 -> 2.4 | J23: =CapCosts!U25 -> 2476.979795 | K23: =IF(A23>$E$2+$E$3-1,0,IF(A23<$E$2,0,Additions!H15)) -> 0 | L23: 0 | M23: =PV($N$11,32,-$P$9*'AC Cost'!L23) -> 0 | N23: 3 | O23: 102.6537193 | P23: 2053.074386 | Q23: 4042.693546 | R23: 3 | S23: 3.558971408 | T23: =IF($A23>$E$2+$E$3-1,0,IF($A23<$E$2,0,Additions!F15)) -> 0 | U23: 0 | V23: 1.5 | W23: 6.280565743 | X23: 1.5 | Y23: 6.280565743 | Z23: 1.5 | AA23: 0 | AB23: =IF($A23>$E$2+$E$3-1,0,(SUM($D$18:D23)+SUM($F$18:F23))*W23+SUM($K$18:K23)*Y23+SUM($U$18:U23)*AA23) -> 628.0565743 | AF23: 50956.81673 | AG23: 40890.35092
A24: 2030 | B24: =CapCosts!B26 -> 2.4 | C24: =CapCosts!O17 -> 0 | D24: =IF(A24>$E$2+$E$3-1,0,IF(A24<$E$2,0,Additions!E16)) -> 0 | E24: =CapCosts!K26 -> 1271.67242 | F24: =IF(A24>$E$2+$E$3-1,0,IF(A24<$E$2,0,Additions!C16)) -> 20 | G24: 25433.44839 | H24: 47396.93221 | I24: =CapCosts!A26 -> 2.4 | J24: =CapCosts!U26 -> 2536.42731 | K24: =IF(A24>$E$2+$E$3-1,0,IF(A24<$E$2,0,Additions!H16)) -> 0 | L24: 0 | M24: =PV($N$11,32,-$P$9*'AC Cost'!L24) -> 0 | N24: 3 | O24: 105.7333309 | P24: 2114.666617 | Q24: 4163.974352 | R24: 3 | S24: 3.66574055 | T24: =IF($A24>$E$2+$E$3-1,0,IF($A24<$E$2,0,Additions!F16)) -> 0 | U24: 0 | V24: 1.5 | W24: 6.374774229 | X24: 1.5 | Y24: 6.374774229 | Z24: 1.5 | AA24: 0 | AB24: =IF($A24>$E$2+$E$3-1,0,(SUM($D$18:D24)+SUM($F$18:F24))*W24+SUM($K$18:K24)*Y24+SUM($U$18:U24)*AA24) -> 764.9729075 | AF24: 52325.87947 | AG24: 40180.81985
A25: 2031 | B25: =CapCosts!B27 -> 2.4 | C25: =CapCosts!O18 -> 0 | D25: =IF(A25>$E$2+$E$3-1,0,IF(A25<$E$2,0,Additions!E17)) -> 0 | E25: =CapCosts!K27 -> 1302.192558 | F25: =IF(A25>$E$2+$E$3-1,0,IF(A25<$E$2,0,Additions!C17)) -> 20 | G25: 26043.85115 | H25: 48534.45859 | I25: =CapCosts!A27 -> 2.4 | J25: =CapCosts!U27 -> 2597.301566 | K25: =IF(A25>$E$2+$E$3-1,0,IF(A25<$E$2,0,Additions!H17)) -> 0 | L25: 0 | M25: =PV($N$11,32,-$P$9*'AC Cost'!L25) -> 0 | N25: 3 | O25: 108.9053308 | P25: 2178.106616 | Q25: 4288.893583 | R25: 3 | S25: 3.775712767 | T25: =IF($A25>$E$2+$E$3-1,0,IF($A25<$E$2,0,Additions!F17)) -> 0 | U25: 0 | V25: 1.5 | W25: 6.470395842 | X25: 1.5 | Y25: 6.470395842 | Z25: 1.5 | AA25: 0 | AB25: =IF($A25>$E$2+$E$3-1,0,(SUM($D$18:D25)+SUM($F$18:F25))*W25+SUM($K$18:K25)*Y25+SUM($U$18:U25)*AA25) -> 905.8554179 | AF25: 53729.20759 | AG25: 39481.75074
A26: 2032 | B26: =CapCosts!B28 -> 2.4 | C26: =CapCosts!O19 -> 0 | D26: =IF(A26>$E$2+$E$3-1,0,IF(A26<$E$2,0,Additions!E18)) -> 0 | E26: =CapCosts!K28 -> 1333.445179 | F26: =IF(A26>$E$2+$E$3-1,0,IF(A26<$E$2,0,Additions!C18)) -> 20 | G26: 26668.90358 | H26: 49699.28559 | I26: =CapCosts!A28 -> 2.4 | J26: =CapCosts!U28 -> 2659.636803 | K26: =IF(A26>$E$2+$E$3-1,0,IF(A26<$E$2,0,Additions!H18)) -> 0 | L26: 0 | M26: =PV($N$11,32,-$P$9*'AC Cost'!L26) -> 0 | N26: 3 | O26: 112.1724907 | P26: 2243.449814 | Q26: 4417.56039 | R26: 3 | S26: 3.88898415 | T26: =IF($A26>$E$2+$E$3-1,0,IF($A26<$E$2,0,Additions!F18)) -> 0 | U26: 0 | V26: 1.5 | W26: 6.56745178 | X26: 1.5 | Y26: 6.56745178 | Z26: 1.5 | AA26: 0 | AB26: =IF($A26>$E$2+$E$3-1,0,(SUM($D$18:D26)+SUM($F$18:F26))*W26+SUM($K$18:K26)*Y26+SUM($U$18:U26)*AA26) -> 1050.792285 | AF26: 55167.63827 | AG26: 38793.06272
A27: 2033 | B27: =CapCosts!B29 -> 2.4 | C27: =CapCosts!O20 -> 0 | D27: =IF(A27>$E$2+$E$3-1,0,IF(A27<$E$2,0,Additions!E19)) -> 0 | E27: =CapCosts!K29 -> 1365.447863 | F27: =IF(A27>$E$2+$E$3-1,0,IF(A27<$E$2,0,Additions!C19)) -> 20 | G27: 27308.95727 | H27: 50892.06845 | I27: =CapCosts!A29 -> 2.4 | J27: =CapCosts!U29 -> 2723.468086 | K27: =IF(A27>$E$2+$E$3-1,0,IF(A27<$E$2,0,Additions!H19)) -> 0 | L27: 0 | M27: =PV($N$11,32,-$P$9*'AC Cost'!L27) -> 0 | N27: 3 | O27: 115.5376654 | P27: 0 | Q27: 0 | R27: 3 | S27: 4.005653674 | T27: =IF($A27>$E$2+$E$3-1,0,IF($A27<$E$2,0,Additions!F19)) -> 0 | U27: 0 | V27: 1.5 | W27: 6.665963557 | X27: 1.5 | Y27: 6.665963557 | Z27: 1.5 | AA27: 0 | AB27: =IF($A27>$E$2+$E$3-1,0,(SUM($D$18:D27)+SUM($F$18:F27))*W27+SUM($K$18:K27)*Y27+SUM($U$18:U27)*AA27) -> 1199.87344 | AF27: 52091.94189 | AG27: 35052.89834
A28: 2034 | B28: =CapCosts!B30 -> 2.4 | C28: =CapCosts!O21 -> 0 | D28: =IF(A28>$E$2+$E$3-1,0,IF(A28<$E$2,0,Additions!E20)) -> 0 | E28: =CapCosts!K30 -> 1398.218612 | F28: =IF(A28>$E$2+$E$3-1,0,IF(A28<$E$2,0,Additions!C20)) -> 0 | G28: 0 | H28: 0 | I28: =CapCosts!A30 -> 2.4 | J28: =CapCosts!U30 -> 2788.831321 | K28: =IF(A28>$E$2+$E$3-1,0,IF(A28<$E$2,0,Additions!H20)) -> 0 | L28: 0 | M28: =PV($N$11,32,-$P$9*'AC Cost'!L28) -> 0 | N28: 3 | O28: 119.0037954 | P28: 0 | Q28: 0 | R28: 3 | S28: 4.125823285 | T28: =IF($A28>$E$2+$E$3-1,0,IF($A28<$E$2,0,Additions!F20)) -> 0 | U28: 0 | V28: 1.5 | W28: 6.76595301 | X28: 1.5 | Y28: 6.76595301 | Z28: 1.5 | AA28: 0 | AB28: =IF($A28>$E$2+$E$3-1,0,(SUM($D$18:D28)+SUM($F$18:F28))*W28+SUM($K$18:K28)*Y28+SUM($U$18:U28)*AA28) -> 0 | AF28: 0 | AG28: 0
A29: 2035 | B29: =CapCosts!B31 -> 2.4 | C29: =CapCosts!O22 -> 0 | D29: =IF(A29>$E$2+$E$3-1,0,IF(A29<$E$2,0,Additions!E21)) -> 0 | E29: =CapCosts!K31 -> 1431.775859 | F29: =IF(A29>$E$2+$E$3-1,0,IF(A29<$E$2,0,Additions!C21)) -> 0 | G29: 0 | H29: 0 | I29: =CapCosts!A31 -> 2.4 | J29: =CapCosts!U31 -> 2855.763272 | K29: =IF(A29>$E$2+$E$3-1,0,IF(A29<$E$2,0,Additions!H21)) -> 0 | L29: 0 | M29: =PV($N$11,32,-$P$9*'AC Cost'!L29) -> 0 | N29: 3 | O29: 122.5739093 | P29: 0 | Q29: 0 | R29: 3 | S29: 4.249597983 | T29: =IF($A29>$E$2+$E$3-1,0,IF($A29<$E$2,0,Additions!F21)) -> 0 | U29: 0 | V29: 1.5 | W29: 6.867442305 | X29: 1.5 | Y29: 6.867442305 | Z29: 1.5 | AA29: 0 | AB29: =IF($A29>$E$2+$E$3-1,0,(SUM($D$18:D29)+SUM($F$18:F29))*W29+SUM($K$18:K29)*Y29+SUM($U$18:U29)*AA29) -> 0 | AF29: 0 | AG29: 0
A30: 2036 | B30: =CapCosts!B32 -> 2.4 | C30: =CapCosts!O23 -> 0 | D30: =IF(A30>$E$2+$E$3-1,0,IF(A30<$E$2,0,Additions!E22)) -> 0 | E30: =CapCosts!K32 -> 1466.138479 | F30: =IF(A30>$E$2+$E$3-1,0,IF(A30<$E$2,0,Additions!C22)) -> 0 | G30: 0 | H30: 0 | I30: =CapCosts!A32 -> 2.4 | J30: =CapCosts!U32 -> 2924.301591 | K30: =IF(A30>$E$2+$E$3-1,0,IF(A30<$E$2,0,Additions!H22)) -> 0 | L30: 0 | M30: =PV($N$11,32,-$P$9*'AC Cost'!L30) -> 0 | N30: 3 | O30: 126.2511265 | P30: 0 | Q30: 0 | R30: 3 | S30: 4.377085923 | T30: =IF($A30>$E$2+$E$3-1,0,IF($A30<$E$2,0,Additions!F22)) -> 0 | U30: 0 | V30: 1.5 | W30: 6.97045394 | X30: 1.5 | Y30: 6.97045394 | Z30: 1.5 | AA30: 0 | AB30: =IF($A30>$E$2+$E$3-1,0,(SUM($D$18:D30)+SUM($F$18:F30))*W30+SUM($K$18:K30)*Y30+SUM($U$18:U30)*AA30) -> 0 | AF30: 0 | AG30: 0
A31: 2037 | B31: =CapCosts!B33 -> 2.4 | C31: =CapCosts!O24 -> 0 | D31: =IF(A31>$E$2+$E$3-1,0,IF(A31<$E$2,0,Additions!E23)) -> 0 | E31: =CapCosts!K33 -> 1501.325803 | F31: =IF(A31>$E$2+$E$3-1,0,IF(A31<$E$2,0,Additions!C23)) -> 0 | G31: 0 | H31: 0 | I31: =CapCosts!A33 -> 2.4 | J31: =CapCosts!U33 -> 2994.484829 | K31: =IF(A31>$E$2+$E$3-1,0,IF(A31<$E$2,0,Additions!H23)) -> 0 | L31: 0 | M31: =PV($N$11,32,-$P$9*'AC Cost'!L31) -> 0 | N31: 3 | O31: 130.0386603 | P31: 0 | Q31: 0 | R31: 3 | S31: 4.5083985 | T31: =IF($A31>$E$2+$E$3-1,0,IF($A31<$E$2,0,Additions!F23)) -> 0 | U31: 0 | V31: 1.5 | W31: 7.075010749 | X31: 1.5 | Y31: 7.075010749 | Z31: 1.5 | AA31: 0 | AB31: =IF($A31>$E$2+$E$3-1,0,(SUM($D$18:D31)+SUM($F$18:F31))*W31+SUM($K$18:K31)*Y31+SUM($U$18:U31)*AA31) -> 0 | AF31: 0 | AG31: 0
A32: 2038 | B32: =CapCosts!B34 -> 2.4 | C32: =CapCosts!O25 -> 0 | D32: =IF(A32>$E$2+$E$3-1,0,IF(A32<$E$2,0,Additions!E24)) -> 0 | E32: =CapCosts!K34 -> 1537.357622 | F32: =IF(A32>$E$2+$E$3-1,0,IF(A32<$E$2,0,Additions!C24)) -> 0 | G32: 0 | H32: 0 | I32: =CapCosts!A34 -> 2.4 | J32: =CapCosts!U34 -> 3066.352465 | K32: =IF(A32>$E$2+$E$3-1,0,IF(A32<$E$2,0,Additions!H24)) -> 0 | L32: 0 | M32: =PV($N$11,32,-$P$9*'AC Cost'!L32) -> 0 | N32: 3 | O32: 133.9398201 | P32: 0 | Q32: 0 | R32: 3 | S32: 4.643650455 | T32: =IF($A32>$E$2+$E$3-1,0,IF($A32<$E$2,0,Additions!F24)) -> 0 | U32: 0 | V32: 1.5 | W32: 7.18113591 | X32: 1.5 | Y32: 7.18113591 | Z32: 1.5 | AA32: 0 | AB32: =IF($A32>$E$2+$E$3-1,0,(SUM($D$18:D32)+SUM($F$18:F32))*W32+SUM($K$18:K32)*Y32+SUM($U$18:U32)*AA32) -> 0 | AF32: 0 | AG32: 0
A33: 2039 | B33: =CapCosts!B35 -> 2.4 | C33: =CapCosts!O26 -> 0 | D33: =IF(A33>$E$2+$E$3-1,0,IF(A33<$E$2,0,Additions!E25)) -> 0 | E33: =CapCosts!K35 -> 1574.254205 | F33: =IF(A33>$E$2+$E$3-1,0,IF(A33<$E$2,0,Additions!C25)) -> 0 | G33: 0 | H33: 0 | I33: =CapCosts!A35 -> 2.4 | J33: =CapCosts!U35 -> 3139.944924 | K33: =IF(A33>$E$2+$E$3-1,0,IF(A33<$E$2,0,Additions!H25)) -> 0 | L33: 0 | M33: =PV($N$11,32,-$P$9*'AC Cost'!L33) -> 0 | N33: 3 | O33: 137.9580147 | P33: 0 | Q33: 0 | R33: 3 | S33: 4.782959969 | T33: =IF($A33>$E$2+$E$3-1,0,IF($A33<$E$2,0,Additions!F25)) -> 0 | U33: 0 | V33: 1.5 | W33: 7.288852949 | X33: 1.5 | Y33: 7.288852949 | Z33: 1.5 | AA33: 0 | AB33: =IF($A33>$E$2+$E$3-1,0,(SUM($D$18:D33)+SUM($F$18:F33))*W33+SUM($K$18:K33)*Y33+SUM($U$18:U33)*AA33) -> 0 | AF33: 0 | AG33: 0
A34: 2040 | B34: =CapCosts!B36 -> 2.4 | C34: =CapCosts!O27 -> 0 | D34: =IF(A34>$E$2+$E$3-1,0,IF(A34<$E$2,0,Additions!E26)) -> 0 | E34: =CapCosts!K36 -> 1612.036306 | F34: =IF(A34>$E$2+$E$3-1,0,IF(A34<$E$2,0,Additions!C26)) -> 0 | G34: 0 | H34: 0 | I34: =CapCosts!A36 -> 2.4 | J34: =CapCosts!U36 -> 3215.303602 | K34: =IF(A34>$E$2+$E$3-1,0,IF(A34<$E$2,0,Additions!H26)) -> 0 | L34: 0 | M34: =PV($N$11,32,-$P$9*'AC Cost'!L34) -> 0 | N34: 3 | O34: 142.0967552 | P34: 0 | Q34: 0 | R34: 3 | S34: 4.926448768 | T34: =IF($A34>$E$2+$E$3-1,0,IF($A34<$E$2,0,Additions!F26)) -> 0 | U34: 0 | V34: 1.5 | W34: 7.398185743 | X34: 1.5 | Y34: 7.398185743 | Z34: 1.5 | AA34: 0 | AB34: =IF($A34>$E$2+$E$3-1,0,(SUM($D$18:D34)+SUM($F$18:F34))*W34+SUM($K$18:K34)*Y34+SUM($U$18:U34)*AA34) -> 0 | AF34: 0 | AG34: 0
A35: 2041 | B35: =CapCosts!B37 -> 2.4 | C35: =CapCosts!O28 -> 0 | D35: =IF(A35>$E$2+$E$3-1,0,IF(A35<$E$2,0,Additions!E27)) -> 0 | E35: =CapCosts!K37 -> 1650.725177 | F35: =IF(A35>$E$2+$E$3-1,0,IF(A35<$E$2,0,Additions!C27)) -> 0 | G35: 0 | H35: 0 | I35: =CapCosts!A37 -> 2.4 | J35: =CapCosts!U37 -> 3292.470889 | K35: =IF(A35>$E$2+$E$3-1,0,IF(A35<$E$2,0,Additions!H27)) -> 0 | L35: 0 | M35: =PV($N$11,32,-$P$9*'AC Cost'!L35) -> 0 | N35: 3 | O35: 146.3596578 | P35: 0 | Q35: 0 | R35: 3 | S35: 5.074242231 | T35: =IF($A35>$E$2+$E$3-1,0,IF($A35<$E$2,0,Additions!F27)) -> 0 | U35: 0 | V35: 1.5 | W35: 7.509158529 | X35: 1.5 | Y35: 7.509158529 | Z35: 1.5 | AA35: 0 | AB35: =IF($A35>$E$2+$E$3-1,0,(SUM($D$18:D35)+SUM($F$18:F35))*W35+SUM($K$18:K35)*Y35+SUM($U$18:U35)*AA35) -> 0 | AF35: 0 | AG35: 0
A36: 2042 | B36: =CapCosts!B38 -> 2.4 | C36: =CapCosts!O29 -> 0 | D36: =IF(A36>$E$2+$E$3-1,0,IF(A36<$E$2,0,Additions!E28)) -> 0 | E36: =CapCosts!K38 -> 1690.342582 | F36: =IF(A36>$E$2+$E$3-1,0,IF(A36<$E$2,0,Additions!C28)) -> 0 | G36: 0 | H36: 0 | I36: =CapCosts!A38 -> 2.4 | J36: =CapCosts!U38 -> 3371.49019 | K36: =IF(A36>$E$2+$E$3-1,0,IF(A36<$E$2,0,Additions!H28)) -> 0 | L36: 0 | M36: =PV($N$11,32,-$P$9*'AC Cost'!L36) -> 0 | N36: 3 | O36: 150.7504476 | P36: 0 | Q36: 0 | R36: 3 | S36: 5.226469498 | T36: =IF($A36>$E$2+$E$3-1,0,IF($A36<$E$2,0,Additions!F28)) -> 0 | U36: 0 | V36: 1.5 | W36: 7.621795907 | X36: 1.5 | Y36: 7.621795907 | Z36: 1.5 | AA36: 0 | AB36: =IF($A36>$E$2+$E$3-1,0,(SUM($D$18:D36)+SUM($F$18:F36))*W36+SUM($K$18:K36)*Y36+SUM($U$18:U36)*AA36) -> 0 | AF36: 0 | AG36: 0
A37: 2043 | B37: =CapCosts!B39 -> 2.4 | C37: =CapCosts!O30 -> 0 | D37: =IF(A37>$E$2+$E$3-1,0,IF(A37<$E$2,0,Additions!E29)) -> 0 | E37: =CapCosts!K39 -> 1730.910804 | F37: =IF(A37>$E$2+$E$3-1,0,IF(A37<$E$2,0,Additions!C29)) -> 0 | G37: 0 | H37: 0 | I37: =CapCosts!A39 -> 2.4 | J37: =CapCosts!U39 -> 3452.405954 | K37: =IF(A37>$E$2+$E$3-1,0,IF(A37<$E$2,0,Additions!H29)) -> 0 | L37: 0 | M37: =PV($N$11,32,-$P$9*'AC Cost'!L37) -> 0 | N37: 3 | O37: 155.272961 | P37: 0 | Q37: 0 | R37: 3 | S37: 5.383263583 | T37: =IF($A37>$E$2+$E$3-1,0,IF($A37<$E$2,0,Additions!F29)) -> 0 | U37: 0 | V37: 1.5 | W37: 7.736122846 | X37: 1.5 | Y37: 7.736122846 | Z37: 1.5 | AA37: 0 | AB37: =IF($A37>$E$2+$E$3-1,0,(SUM($D$18:D37)+SUM($F$18:F37))*W37+SUM($K$18:K37)*Y37+SUM($U$18:U37)*AA37) -> 0 | AF37: 0 | AG37: 0
A38: 2044 | B38: =CapCosts!B40 -> 2.4 | C38: =CapCosts!O31 -> 0 | D38: =IF(A38>$E$2+$E$3-1,0,IF(A38<$E$2,0,Additions!E30)) -> 0 | E38: =CapCosts!K40 -> 1772.452663 | F38: =IF(A38>$E$2+$E$3-1,0,IF(A38<$E$2,0,Additions!C30)) -> 0 | G38: 0 | H38: 0 | I38: =CapCosts!A40 -> 2.4 | J38: =CapCosts!U40 -> 3535.263697 | K38: =IF(A38>$E$2+$E$3-1,0,IF(A38<$E$2,0,Additions!H30)) -> 0 | L38: 0 | M38: =PV($N$11,32,-$P$9*'AC Cost'!L38) -> 0 | N38: 3 | O38: 159.9311498 | P38: 0 | Q38: 0 | R38: 3 | S38: 5.54476149 | T38: =IF($A38>$E$2+$E$3-1,0,IF($A38<$E$2,0,Additions!F30)) -> 0 | U38: 0 | V38: 1.5 | W38: 7.852164688 | X38: 1.5 | Y38: 7.852164688 | Z38: 1.5 | AA38: 0 | AB38: =IF($A38>$E$2+$E$3-1,0,(SUM($D$18:D38)+SUM($F$18:F38))*W38+SUM($K$18:K38)*Y38+SUM($U$18:U38)*AA38) -> 0 | AF38: 0 | AG38: 0
AF40: TOTAL : | AG40: =SUM(AG18:AG38) -> 368754.7593
A41: DEFERRED PLAN PRESENT WORTH ANALYSIS
B44: GAS | I44: Reciprocating Internal Combustion Engine (RICE) | N44: TRANSMISSION | R44: LONG TERM PURCH | V44: FIXED O&M | AC44: SEASONAL PURCHASES | AG44: PRESENT WORTH
C45: CC | D45: CC | E45: CT | F45: CT | G45: TOTAL | H45: P.W. of | L45: TOTAL | M45: P.W. of | P45: TOTAL | Q45: P.W. of | U45: (6Mo) | V45: GAS | X45: COAL | Z45: L-T Purch | AB45: TOTAL | AE45: TOTAL | AF45: TOTAL | AG45: OF
B46: ESC. | G46: COST | H46: PMTS | I46: ESC | L46: COST | M46: PMTS (1) | N46: ESC | P46: COST | Q46: PMTS | R46: ESC. | S46: $/kW- | T46: AVG | U46: TOT COST | V46: ESC | X46: ESC | Z46: ESC | AB46: COST | AD46: AVG. | AE46: COST | AF46: ANNUAL COSTS | AG46: ANNUAL COSTS
A47: YEAR | B47: (%) | C47: $/KW | D47: MW | E47: $/KW | F47: MW | G47: ($1000) | H47: ($1000) | I47: (%) | J47: $/KW | K47: MW | L47: ($1000) | M47: ($1000) | N47: (%) | O47: $/KW | P47: ($1000) | Q47: ($1000) | R47: (%) | S47: Mo. | T47: MW | U47: ($1000) | V47: (%) | W47: ($/kW) | X47: (%) | Y47: ($/kW) | Z47: (%) | AA47: ($/kW) | AB47: ($1000) | AC47: $/kW-Mo | AD47: MW | AE47: ($1000) | AF47: ($1000) | AG47: ($1000)
A48: =A18 -> 2024 | B48: 2.4 | C48: 0 | D48: 0 | E48: 1103 | F48: 0 | G48: =C48*D48+E48*F48 -> 0 | H48: =PV($N$11,32,-$P$9*'AC Cost'!G48) -> 0 | I48: =I18 -> 2.4 | J48: =J18 -> 2200 | K48: =K18 -> 0 | L48: =J48*K48 -> 0 | M48: =PV($N$11,32,-$P$9*'AC Cost'!L48) -> 0 | N48: =N18 -> 3 | O48: =O18 -> 88.55 | P48: =IF(A48<$E$2,0,(D49+F49+K49)*O48) -> 1771 | Q48: =PV($N$11,32,-$Q$9*P48) -> 3487.262965 | R48: =R18 -> 3 | S48: =S18 -> 3.07 | T48: =T18 -> 0 | U48: =S48*T48*6 -> 0 | V48: =V18 -> 1.5 | W48: 5.83 | X48: 1.5 | Y48: 5.83 | Z48: 1.5 | AA48: 0 | AB48: 0 | AF48: =H48+M48+Q48+U48+AB48 -> 3487.262965 | AG48: =PV($N$11,A48-$E$2,,-AF48,) -> 3487.262965
A49: =A19 -> 2025 | B49: 2.4 | C49: 0 | D49: =IF($A49-$E$2<=$E$4,D19,IF($A49-$E$2=$E$4+1,0,D18)) -> 0 | E49: =E19 -> 1129.472 | F49: =IF($A49-$E$2<=$E$4,F19,IF($A49-$E$2=$E$4+1,0,F18)) -> 20 | G49: =C49*D49+E49*F49 -> 22589.44 | H49: =PV($N$11,32,-$P$9*'AC Cost'!G49) -> 42096.93235 | I49: =I19 -> 2.4 | J49: 2252.8 | K49: =IF($A49-$E$2<=$E$5,K19,IF($A49-$E$2=$E$5+1,0,K18)) -> 0 | L49: =J49*K49 -> 0 | M49: =PV($N$11,32,-$P$9*'AC Cost'!L49) -> 0 | N49: =N19 -> 3 | O49: 91.2065 | P49: =IF(A49<$E$2,0,(D50+F50+K50)*O49) -> 1824.13 | Q49: 3591.880854 | R49: =R19 -> 3 | S49: 3.1621 | T49: =IF($A49-$E$2<=$E$7,T19,IF($A49-$E$2=$E$7+1,0,T18)) -> 0 | U49: =S49*T49*6 -> 0 | V49: =V19 -> 1.5 | W49: 5.91745 | X49: 1.5 | Y49: 5.91745 | Z49: 1.5 | AA49: 0 | AB49: 118.349 | AF49: 45807.16221 | AG49: 43834.60498
A50: 2026 | B50: 2.4 | C50: 0 | D50: 0 | E50: 1156.579328 | F50: 20 | G50: 23131.58656 | H50: =PV($N$11,32,-$P$9*'AC Cost'!G50) -> 43107.25873 | I50: 2.4 | J50: 2306.8672 | K50: 0 | L50: 0 | M50: =PV($N$11,32,-$P$9*'AC Cost'!L50) -> 0 | N50: =N20 -> 3 | O50: 93.942695 | P50: 0 | Q50: 0 | R50: 3 | S50: 3.256963 | T50: 0 | U50: 0 | V50: 1.5 | W50: 6.00621175 | X50: 1.5 | Y50: 6.00621175 | Z50: 1.5 | AA50: 0 | AB50: 240.24847 | AF50: 43347.5072 | AG50: 39694.61065
A51: 2027 | B51: 2.4 | C51: 0 | D51: 0 | E51: 1184.337232 | F51: 0 | G51: 0 | H51: =PV($N$11,32,-$P$9*'AC Cost'!G51) -> 0 | I51: 2.4 | J51: 2362.232013 | K51: 0 | L51: 0 | M51: =PV($N$11,32,-$P$9*'AC Cost'!L51) -> 0 | N51: =N21 -> 3 | O51: 96.76097585 | P51: 1935.219517 | Q51: 3810.626398 | R51: 3 | S51: 3.35467189 | T51: 0 | U51: 0 | V51: 1.5 | W51: 6.096304926 | X51: 1.5 | Y51: 6.096304926 | Z51: 1.5 | AA51: 0 | AB51: 365.7782956 | AF51: 4176.404694 | AG51: 3659.76925
A52: 2028 | B52: 2.4 | C52: 0 | D52: 0 | E52: 1212.761325 | F52: 20 | G52: 24255.22651 | H52: =PV($N$11,32,-$P$9*'AC Cost'!G52) -> 45201.23693 | I52: 2.4 | J52: 2418.925581 | K52: 0 | L52: 0 | M52: =PV($N$11,32,-$P$9*'AC Cost'!L52) -> 0 | N52: =N22 -> 3 | O52: 99.66380513 | P52: 1993.276103 | Q52: 3924.94519 | R52: 3 | S52: 3.455312047 | T52: 0 | U52: 0 | V52: 1.5 | W52: 6.1877495 | X52: 1.5 | Y52: 6.1877495 | Z52: 1.5 | AA52: 0 | AB52: 495.01996 | AF52: 49621.20208 | AG52: 41610.42189
A53: 2029 | B53: 2.4 | C53: 0 | D53: 0 | E53: 1241.867597 | F53: 20 | G53: 24837.35194 | H53: =PV($N$11,32,-$P$9*'AC Cost'!G53) -> 46286.06661 | I53: 2.4 | J53: 2476.979795 | K53: 0 | L53: 0 | M53: =PV($N$11,32,-$P$9*'AC Cost'!L53) -> 0 | N53: =N23 -> 3 | O53: 102.6537193 | P53: 2053.074386 | Q53: 4042.693546 | R53: 3 | S53: 3.558971408 | T53: 0 | U53: 0 | V53: 1.5 | W53: 6.280565743 | X53: 1.5 | Y53: 6.280565743 | Z53: 1.5 | AA53: 0 | AB53: 628.0565743 | AF53: 50956.81673 | AG53: 40890.35092
A54: 2030 | B54: 2.4 | C54: 0 | D54: 0 | E54: 1271.67242 | F54: 20 | G54: 25433.44839 | H54: =PV($N$11,32,-$P$9*'AC Cost'!G54) -> 47396.93221 | I54: 2.4 | J54: 2536.42731 | K54: 0 | L54: 0 | M54: =PV($N$11,32,-$P$9*'AC Cost'!L54) -> 0 | N54: =N24 -> 3 | O54: 105.7333309 | P54: 2114.666617 | Q54: 4163.974352 | R54: 3 | S54: 3.66574055 | T54: 0 | U54: 0 | V54: 1.5 | W54: 6.374774229 | X54: 1.5 | Y54: 6.374774229 | Z54: 1.5 | AA54: 0 | AB54: 764.9729075 | AF54: 52325.87947 | AG54: 40180.81985
A55: 2031 | B55: 2.4 | C55: 0 | D55: 0 | E55: 1302.192558 | F55: 20 | G55: 26043.85115 | H55: =PV($N$11,32,-$P$9*'AC Cost'!G55) -> 48534.45859 | I55: 2.4 | J55: 2597.301566 | K55: 0 | L55: 0 | M55: =PV($N$11,32,-$P$9*'AC Cost'!L55) -> 0 | N55: =N25 -> 3 | O55: 108.9053308 | P55: 2178.106616 | Q55: 4288.893583 | R55: 3 | S55: 3.775712767 | T55: 0 | U55: 0 | V55: 1.5 | W55: 6.470395842 | X55: 1.5 | Y55: 6.470395842 | Z55: 1.5 | AA55: 0 | AB55: 905.8554179 | AF55: 53729.20759 | AG55: 39481.75074
A56: 2032 | B56: 2.4 | C56: 0 | D56: 0 | E56: 1333.445179 | F56: 20 | G56: 26668.90358 | H56: =PV($N$11,32,-$P$9*'AC Cost'!G56) -> 49699.28559 | I56: 2.4 | J56: 2659.636803 | K56: 0 | L56: 0 | M56: =PV($N$11,32,-$P$9*'AC Cost'!L56) -> 0 | N56: =N26 -> 3 | O56: 112.1724907 | P56: 2243.449814 | Q56: 4417.56039 | R56: 3 | S56: 3.88898415 | T56: 0 | U56: 0 | V56: 1.5 | W56: 6.56745178 | X56: 1.5 | Y56: 6.56745178 | Z56: 1.5 | AA56: 0 | AB56: 1050.792285 | AF56: 55167.63827 | AG56: 38793.06272
A57: 2033 | B57: 2.4 | C57: 0 | D57: 0 | E57: 1365.447863 | F57: 20 | G57: 27308.95727 | H57: =PV($N$11,32,-$P$9*'AC Cost'!G57) -> 50892.06845 | I57: 2.4 | J57: 2723.468086 | K57: 0 | L57: 0 | M57: =PV($N$11,32,-$P$9*'AC Cost'!L57) -> 0 | N57: =N27 -> 3 | O57: 115.5376654 | P57: 2310.753309 | Q57: 4550.087202 | R57: 3 | S57: 4.005653674 | T57: 0 | U57: 0 | V57: 1.5 | W57: 6.665963557 | X57: 1.5 | Y57: 6.665963557 | Z57: 1.5 | AA57: 0 | AB57: 1199.87344 | AF57: 56642.02909 | AG57: 38114.67217
A58: 2034 | B58: 2.4 | C58: 0 | D58: 0 | E58: 1398.218612 | F58: 20 | G58: 27964.37224 | H58: =PV($N$11,32,-$P$9*'AC Cost'!G58) -> 52113.47809 | I58: 2.4 | J58: 2788.831321 | K58: 0 | L58: 0 | M58: =PV($N$11,32,-$P$9*'AC Cost'!L58) -> 0 | N58: =N28 -> 3 | O58: 119.0037954 | P58: 0 | Q58: 0 | R58: 3 | S58: 4.125823285 | T58: 0 | U58: 0 | V58: 1.5 | W58: 6.76595301 | X58: 1.5 | Y58: 6.76595301 | Z58: 1.5 | AA58: 0 | AB58: 0 | AF58: 52113.47809 | AG58: 33557.31115
A59: 2035 | B59: 2.4 | C59: 0 | D59: 0 | E59: 1431.775859 | F59: 0 | G59: 0 | H59: =PV($N$11,32,-$P$9*'AC Cost'!G59) -> 0 | I59: 2.4 | J59: 2855.763272 | K59: 0 | L59: 0 | M59: =PV($N$11,32,-$P$9*'AC Cost'!L59) -> 0 | N59: =N29 -> 3 | O59: 122.5739093 | P59: 0 | Q59: 0 | R59: 3 | S59: 4.249597983 | T59: 0 | U59: 0 | V59: =V29 -> 1.5 | W59: 6.867442305 | X59: 1.5 | Y59: 6.867442305 | Z59: 1.5 | AA59: 0 | AB59: 0 | AF59: 0 | AG59: 0
A60: 2036 | B60: 2.4 | C60: 0 | D60: 0 | E60: 1466.138479 | F60: 0 | G60: 0 | H60: =PV($N$11,32,-$P$9*'AC Cost'!G60) -> 0 | I60: 2.4 | J60: 2924.301591 | K60: 0 | L60: 0 | M60: =PV($N$11,32,-$P$9*'AC Cost'!L60) -> 0 | N60: =N30 -> 3 | O60: 126.2511265 | P60: 0 | Q60: 0 | R60: 3 | S60: 4.377085923 | T60: 0 | U60: 0 | V60: 1.5 | W60: 6.97045394 | X60: 1.5 | Y60: 6.97045394 | Z60: 1.5 | AA60: 0 | AB60: 0 | AF60: 0 | AG60: 0
A61: 2037 | B61: 2.4 | C61: 0 | D61: 0 | E61: 1501.325803 | F61: 0 | G61: 0 | H61: =PV($N$11,32,-$P$9*'AC Cost'!G61) -> 0 | I61: 2.4 | J61: 2994.484829 | K61: 0 | L61: 0 | M61: =PV($N$11,32,-$P$9*'AC Cost'!L61) -> 0 | N61: =N31 -> 3 | O61: 130.0386603 | P61: 0 | Q61: 0 | R61: 3 | S61: 4.5083985 | T61: 0 | U61: 0 | V61: 1.5 | W61: 7.075010749 | X61: 1.5 | Y61: 7.075010749 | Z61: 1.5 | AA61: 0 | AB61: 0 | AF61: 0 | AG61: 0
A62: 2038 | B62: 2.4 | C62: 0 | D62: 0 | E62: 1537.357622 | F62: 0 | G62: 0 | H62: =PV($N$11,32,-$P$9*'AC Cost'!G62) -> 0 | I62: 2.4 | J62: 3066.352465 | K62: 0 | L62: 0 | M62: =PV($N$11,32,-$P$9*'AC Cost'!L62) -> 0 | N62: =N32 -> 3 | O62: 133.9398201 | P62: 0 | Q62: 0 | R62: 3 | S62: 4.643650455 | T62: 0 | U62: 0 | V62: 1.5 | W62: 7.18113591 | X62: 1.5 | Y62: 7.18113591 | Z62: 1.5 | AA62: 0 | AB62: 0 | AF62: 0 | AG62: 0
A63: 2039 | B63: 2.4 | C63: 0 | D63: 0 | E63: 1574.254205 | F63: 0 | G63: 0 | H63: =PV($N$11,32,-$P$9*'AC Cost'!G63) -> 0 | I63: 2.4 | J63: 3139.944924 | K63: 0 | L63: 0 | M63: =PV($N$11,32,-$P$9*'AC Cost'!L63) -> 0 | N63: =N33 -> 3 | O63: 137.9580147 | P63: 0 | Q63: 0 | R63: 3 | S63: 4.782959969 | T63: 0 | U63: 0 | V63: 1.5 | W63: 7.288852949 | X63: 1.5 | Y63: 7.288852949 | Z63: 1.5 | AA63: 0 | AB63: 0 | AF63: 0 | AG63: 0
A64: 2040 | B64: 2.4 | C64: 0 | D64: 0 | E64: 1612.036306 | F64: 0 | G64: 0 | H64: =PV($N$11,32,-$P$9*'AC Cost'!G64) -> 0 | I64: 2.4 | J64: 3215.303602 | K64: 0 | L64: 0 | M64: =PV($N$11,32,-$P$9*'AC Cost'!L64) -> 0 | N64: =N34 -> 3 | O64: 142.0967552 | P64: 0 | Q64: 0 | R64: 3 | S64: 4.926448768 | T64: 0 | U64: 0 | V64: 1.5 | W64: 7.398185743 | X64: 1.5 | Y64: 7.398185743 | Z64: 1.5 | AA64: 0 | AB64: 0 | AF64: 0 | AG64: 0
A65: 2041 | B65: 2.4 | C65: 0 | D65: 0 | E65: 1650.725177 | F65: 0 | G65: 0 | H65: =PV($N$11,32,-$P$9*'AC Cost'!G65) -> 0 | I65: 2.4 | J65: 3292.470889 | K65: 0 | L65: 0 | M65: =PV($N$11,32,-$P$9*'AC Cost'!L65) -> 0 | N65: =N35 -> 3 | O65: 146.3596578 | P65: 0 | Q65: 0 | R65: 3 | S65: 5.074242231 | T65: 0 | U65: 0 | V65: 1.5 | W65: 7.509158529 | X65: 1.5 | Y65: 7.509158529 | Z65: 1.5 | AA65: 0 | AB65: 0 | AF65: 0 | AG65: 0
A66: 2042 | B66: 2.4 | C66: 0 | D66: 0 | E66: 1690.342582 | F66: 0 | G66: 0 | H66: =PV($N$11,32,-$P$9*'AC Cost'!G66) -> 0 | I66: 2.4 | J66: 3371.49019 | K66: 0 | L66: 0 | M66: =PV($N$11,32,-$P$9*'AC Cost'!L66) -> 0 | N66: =N36 -> 3 | O66: 150.7504476 | P66: 0 | Q66: 0 | R66: 3 | S66: 5.226469498 | T66: 0 | U66: 0 | V66: 1.5 | W66: 7.621795907 | X66: 1.5 | Y66: 7.621795907 | Z66: 1.5 | AA66: 0 | AB66: 0 | AF66: 0 | AG66: 0
A67: 2043 | B67: 2.4 | C67: 0 | D67: 0 | E67: 1730.910804 | F67: 0 | G67: 0 | H67: =PV($N$11,32,-$P$9*'AC Cost'!G67) -> 0 | I67: 2.4 | J67: 3452.405954 | K67: 0 | L67: 0 | M67: =PV($N$11,32,-$P$9*'AC Cost'!L67) -> 0 | N67: =N37 -> 3 | O67: 155.272961 | P67: 0 | Q67: 0 | R67: 3 | S67: 5.383263583 | T67: 0 | U67: 0 | V67: 1.5 | W67: 7.736122846 | X67: 1.5 | Y67: 7.736122846 | Z67: 1.5 | AA67: 0 | AB67: 0 | AF67: 0 | AG67: 0
A68: 2044 | B68: 2.4 | C68: 0 | D68: 0 | E68: 1772.452663 | F68: 0 | G68: 0 | H68: =PV($N$11,32,-$P$9*'AC Cost'!G68) -> 0 | I68: 2.4 | J68: 3535.263697 | K68: 0 | L68: 0 | M68: =PV($N$11,32,-$P$9*'AC Cost'!L68) -> 0 | N68: =N38 -> 3 | O68: 159.9311498 | P68: 0 | Q68: 0 | R68: 3 | S68: 5.54476149 | T68: 0 | U68: 0 | V68: 1.5 | W68: 7.852164688 | X68: 1.5 | Y68: 7.852164688 | Z68: 1.5 | AA68: 0 | AB68: 0 | AF68: 0 | AG68: 0
AF70: TOTAL : | AG70: =SUM(AG48:AG68) -> 363304.6373

Sheet AC Report
B1: EAST KENTUCKY POWER COOPERATIVE
F2: AVOIDED CAPACITY COSTS | K2: ='AC Cost'!E2 -> 2024 | M2: REVISED DATE: | O2: ='AC Cost'!AF2 -> 2024-05-29
B4: SUMMARY FOR: | D4: ='AC Cost'!X3 -> 2024
M5: SUPPLY-SIDE | O5: DEMAND-SIDE
B6: BASE EXPANSION PLAN ($1,000s) | F6: ='AC Cost'!Y3 -> 368754.7593 | H6: ANNUAL GROWTH (MW) : | M6: =(IF('AC Cost'!$E$3=10,LoadForecast!$S$28,LoadForecast!$S$29))*1.12 -> 17.07776 | O6: =(IF('AC Cost'!$E$3=10,LoadForecast!$S$28,LoadForecast!$S$29)) -> 15.248
B7: 1 YEAR DEFERRAL CASE ($1,000s) | F7: ='AC Cost'!Z3 -> 363304.6373 | H7: AVOIDED COSTS ($/kW) : | M7: =F8/M6 -> 319.1356473 | O7: =F8/O6 -> 357.431925
B8: DIFFERENCE ($1000s) : | F8: =F6-F7 -> 5450.121993 | H8: LEVELIZED SAVINGS ($/kW-YR) : | M8: =PMT('AC Cost'!$N$10,'AC Cost'!$E$3,-M7) -> 40.33198709 | O8: =PMT('AC Cost'!$N$10,'AC Cost'!$E$3,-O7) -> 45.17182554
K9: @DIST SUB | M9: =M8/(1-'AC Cost'!$N$11) -> 42.23244721 | O9: =O8/(1-'AC Cost'!$N$11) -> 47.30034088
K10: @DIS SUB($/kW-mo) | M10: =M9/12 -> 3.519370601 | O10: =O9/12 -> 3.941695073
B11: SUMMARY FOR: | D11: ='AC Cost'!X4 -> 2025
M12: SUPPLY-SIDE | O12: DEMAND-SIDE
B13: BASE EXPANSION PLAN ($1,000s) | F13: ='AC Cost'!Y4 -> 420882.0454 | H13: ANNUAL GROWTH (MW) : | M13: =(IF('AC Cost'!$E$3=10,LoadForecast!$S$28,LoadForecast!$S$29))*1.12 -> 17.07776 | O13: =(IF('AC Cost'!$E$3=10,LoadForecast!$S$28,LoadForecast!$S$29)) -> 15.248
B14: 1 YEAR DEFERRAL CASE ($1,000s) | F14: ='AC Cost'!Z4 -> 415299.1639 | H14: AVOIDED COSTS ($/kW) : | M14: =F15/M13 -> 326.9094711 | O14: =F15/O13 -> 366.1386076
B15: DIFFERENCE ($1000s) : | F15: =F13-F14 -> 5582.881489 | H15: LEVELIZED SAVINGS ($/kW-YR) : | M15: =PMT('AC Cost'!$N$10,'AC Cost'!$E$3,-M14) -> 41.31443378 | O15: =PMT('AC Cost'!$N$10,'AC Cost'!$E$3,-O14) -> 46.27216583
K16: @DIST SUB | M16: =M15/(1-'AC Cost'!$N$11) -> 43.2611872 | O16: =O15/(1-'AC Cost'!$N$11) -> 48.45252966
K17: @DIS SUB($/kW-mo) | M17: =M16/12 -> 3.605098933 | O17: =O16/12 -> 4.037710805
B18: SUMMARY FOR: | D18: ='AC Cost'!X5 -> 2026
M19: SUPPLY-SIDE | O19: DEMAND-SIDE
B20: BASE EXPANSION PLAN ($1,000s) | F20: ='AC Cost'!Y5 -> 431117.0885 | H20: ANNUAL GROWTH (MW) : | M20: =(IF('AC Cost'!$E$3=10,LoadForecast!$S$28,LoadForecast!$S$29))*1.12 -> 17.07776 | O20: =(IF('AC Cost'!$E$3=10,LoadForecast!$S$28,LoadForecast!$S$29)) -> 15.248
B21: 1 YEAR DEFERRAL CASE ($1,000s) | F21: ='AC Cost'!Z5 -> 425398.2026 | H21: AVOIDED COSTS ($/kW) : | M21: =F22/M20 -> 334.8733037 | O21: =F22/O20 -> 375.0581002
B22: DIFFERENCE ($1000s) : | F22: =F20-F21 -> 5718.885911 | H22: LEVELIZED SAVINGS ($/kW-YR) : | M22: =PMT('AC Cost'!$N$10,'AC Cost'!$E$3,-M21) -> 42.32089356 | O22: =PMT('AC Cost'!$N$10,'AC Cost'!$E$3,-O21) -> 47.39940078
K23: @DIST SUB | M23: =M22/(1-'AC Cost'!$N$11) -> 44.31507179 | O23: =O22/(1-'AC Cost'!$N$11) -> 49.6328804
K24: @DIS SUB($/kW-mo) | M24: =M23/12 -> 3.692922649 | O24: =O23/12 -> 4.136073367
B25: SUMMARY FOR: | D25: ='AC Cost'!X6 -> 2027
M26: SUPPLY-SIDE | O26: DEMAND-SIDE
B27: BASE EXPANSION PLAN ($1,000s) | F27: ='AC Cost'!Y6 -> 441602.5286 | H27: ANNUAL GROWTH (MW) : | M27: =(IF('AC Cost'!$E$3=10,LoadForecast!$S$28,LoadForecast!$S$29))*1.12 -> 17.07776 | O27: =(IF('AC Cost'!$E$3=10,LoadForecast!$S$28,LoadForecast!$S$29)) -> 15.248
B28: 1 YEAR DEFERRAL CASE ($1,000s) | F28: ='AC Cost'!Z6 -> 435744.3137 | H28: AVOIDED COSTS ($/kW) : | M28: =F29/M27 -> 343.0318085 | O28: =F29/O27 -> 384.1956255
B29: DIFFERENCE ($1000s) : | F29: =F27-F28 -> 5858.214897 | H29: LEVELIZED SAVINGS ($/kW-YR) : | M29: =PMT('AC Cost'!$N$10,'AC Cost'!$E$3,-M28) -> 43.35195577 | O29: =PMT('AC Cost'!$N$10,'AC Cost'!$E$3,-O28) -> 48.55419047
K30: @DIST SUB | M30: =M29/(1-'AC Cost'!$N$11) -> 45.39471809 | O30: =O29/(1-'AC Cost'!$N$11) -> 50.84208426
K31: @DIS SUB($/kW-mo) | M31: =M30/12 -> 3.782893174 | O31: =O30/12 -> 4.236840355
B32: SUMMARY FOR: | D32: ='AC Cost'!X7 -> 2028
M33: SUPPLY-SIDE | O33: DEMAND-SIDE
B34: BASE EXPANSION PLAN ($1,000s) | F34: ='AC Cost'!Y7 -> 452344.529 | H34: ANNUAL GROWTH (MW) : | M34: =(IF('AC Cost'!$E$3=10,LoadForecast!$S$28,LoadForecast!$S$29))*1.12 -> 17.07776 | O34: =(IF('AC Cost'!$E$3=10,LoadForecast!$S$28,LoadForecast!$S$29)) -> 15.248
B35: 1 YEAR DEFERRAL CASE ($1,000s) | F35: ='AC Cost'!Z7 -> 446343.579 | H35: AVOIDED COSTS ($/kW) : | M35: =F36/M34 -> 351.3897637 | O35: =F36/O34 -> 393.5565353
B36: DIFFERENCE ($1000s) : | F36: =F34-F35 -> 6000.950051 | H36: LEVELIZED SAVINGS ($/kW-YR) : | M36: =PMT('AC Cost'!$N$10,'AC Cost'!$E$3,-M35) -> 44.40822431 | O36: =PMT('AC Cost'!$N$10,'AC Cost'!$E$3,-O35) -> 49.73721122
K37: @DIST SUB | M37: =M36/(1-'AC Cost'!$N$11) -> 46.50075844 | O37: =O36/(1-'AC Cost'!$N$11) -> 52.08084945
K38: @DIS SUB($/kW-mo) | M38: =M37/12 -> 3.875063203 | O38: =O37/12 -> 4.340070787
B43: EAST KENTUCKY POWER COOPERATIVE
F44: AVOIDED CAPACITY COSTS | K44: =K2 -> 2024 | M44: REVISED DATE: | O44: =O2 -> 2024-05-29
B46: SUMMARY FOR: | D46: ='AC Cost'!X8 -> 2029
M47: SUPPLY-SIDE | O47: DEMAND-SIDE
B48: BASE EXPANSION PLAN ($1,000s) | F48: ='AC Cost'!Y8 -> 463349.4057 | H48: ANNUAL GROWTH (MW) : | M48: =(IF('AC Cost'!$E$3=10,LoadForecast!$S$28,LoadForecast!$S$29))*1.12 -> 17.07776 | O48: =(IF('AC Cost'!$E$3=10,LoadForecast!$S$28,LoadForecast!$S$29)) -> 15.248
B49: 1 YEAR DEFERRAL CASE ($1,000s) | F49: ='AC Cost'!Z8 -> 457202.2307 | H49: AVOIDED COSTS ($/kW) : | M49: =F50/M48 -> 359.9520656 | O49: =F50/O48 -> 403.1463135
B50: DIFFERENCE ($1000s) : | F50: =F48-F49 -> 6147.174988 | H50: LEVELIZED SAVINGS ($/kW-YR) : | M50: =PMT('AC Cost'!$N$10,'AC Cost'!$E$3,-M49) -> 45.49031793 | O50: =PMT('AC Cost'!$N$10,'AC Cost'!$E$3,-O49) -> 50.94915608
K51: @DIST SUB | M51: =M50/(1-'AC Cost'!$N$11) -> 47.63384077 | O51: =O50/(1-'AC Cost'!$N$11) -> 53.34990166
K52: @DIS SUB($/kW-mo) | M52: =M51/12 -> 3.969486731 | O52: =O51/12 -> 4.445825138
B54: SUMMARY FOR: | D54: ='AC Cost'!X9 -> 2030
M55: SUPPLY-SIDE | O55: DEMAND-SIDE
B56: BASE EXPANSION PLAN ($1,000s) | F56: ='AC Cost'!Y9 -> 474623.6313 | H56: ANNUAL GROWTH (MW) : | M56: =(IF('AC Cost'!$E$3=10,LoadForecast!$S$28,LoadForecast!$S$29))*1.12 -> 17.07776 | O56: =(IF('AC Cost'!$E$3=10,LoadForecast!$S$28,LoadForecast!$S$29)) -> 15.248
B57: 1 YEAR DEFERRAL CASE ($1,000s) | F57: ='AC Cost'!Z9 -> 468326.6559 | H57: AVOIDED COSTS ($/kW) : | M57: =F58/M56 -> 368.7237312 | O57: =F58/O56 -> 412.9705789
B58: DIFFERENCE ($1000s) : | F58: =F56-F57 -> 6296.975387 | H58: LEVELIZED SAVINGS ($/kW-YR) : | M58: =PMT('AC Cost'!$N$10,'AC Cost'!$E$3,-M57) -> 46.59887069 | O58: =PMT('AC Cost'!$N$10,'AC Cost'!$E$3,-O57) -> 52.19073518
K59: @DIST SUB | M59: =M58/(1-'AC Cost'!$N$11) -> 48.794629 | O59: =O58/(1-'AC Cost'!$N$11) -> 54.64998448
K60: @DIS SUB($/kW-mo) | M60: =M59/12 -> 4.066219083 | O60: =O59/12 -> 4.554165373
B61: SUMMARY FOR: | D61: ='AC Cost'!X10 -> 2031
M62: SUPPLY-SIDE | O62: DEMAND-SIDE
B63: BASE EXPANSION PLAN ($1,000s) | F63: ='AC Cost'!Y10 -> 486173.8385 | H63: ANNUAL GROWTH (MW) : | M63: =(IF('AC Cost'!$E$3=10,LoadForecast!$S$28,LoadForecast!$S$29))*1.12 -> 17.07776 | O63: =(IF('AC Cost'!$E$3=10,LoadForecast!$S$28,LoadForecast!$S$29)) -> 15.248
B64: 1 YEAR DEFERRAL CASE ($1,000s) | F64: ='AC Cost'!Z10 -> 479723.3995 | H64: AVOIDED COSTS ($/kW) : | M64: =F65/M63 -> 377.7099012 | O64: =F65/O63 -> 423.0350893
B65: DIFFERENCE ($1000s) : | F65: =F63-F64 -> 6450.439042 | H65: LEVELIZED SAVINGS ($/kW-YR) : | M65: =PMT('AC Cost'!$N$10,'AC Cost'!$E$3,-M64) -> 47.73453227 | O65: =PMT('AC Cost'!$N$10,'AC Cost'!$E$3,-O64) -> 53.46267614
K66: @DIST SUB | M66: =M65/(1-'AC Cost'!$N$11) -> 49.98380343 | O66: =O65/(1-'AC Cost'!$N$11) -> 55.98185984
K67: @DIS SUB($/kW-mo) | M67: =M66/12 -> 4.165316952 | O67: =O66/12 -> 4.665154986
B68: SUMMARY FOR: | D68: ='AC Cost'!X11 -> 2032
M69: SUPPLY-SIDE | O69: DEMAND-SIDE
B70: BASE EXPANSION PLAN ($1,000s) | F70: ='AC Cost'!Y11 -> 498006.8249 | H70: ANNUAL GROWTH (MW) : | M70: =(IF('AC Cost'!$E$3=10,LoadForecast!$S$28,LoadForecast!$S$29))*1.12 -> 17.07776 | O70: =(IF('AC Cost'!$E$3=10,LoadForecast!$S$28,LoadForecast!$S$29)) -> 15.248
B71: 1 YEAR DEFERRAL CASE ($1,000s) | F71: ='AC Cost'!Z11 -> 491399.169 | H71: AVOIDED COSTS ($/kW) : | M71: =F72/M70 -> 386.9158433 | O71: =F72/O70 -> 433.3457445
B72: DIFFERENCE ($1000s) : | F72: =F70-F71 -> 6607.655912 | H72: LEVELIZED SAVINGS ($/kW-YR) : | M72: =PMT('AC Cost'!$N$10,'AC Cost'!$E$3,-M71) -> 48.89796839 | O72: =PMT('AC Cost'!$N$10,'AC Cost'!$E$3,-O71) -> 54.7657246
K73: @DIST SUB | M73: =M72/(1-'AC Cost'!$N$11) -> 51.20206114 | O73: =O72/(1-'AC Cost'!$N$11) -> 57.34630848
K74: @DIS SUB($/kW-mo) | M74: =M73/12 -> 4.266838429 | O74: =O73/12 -> 4.77885904
B75: SUMMARY FOR: | D75: ='AC Cost'!X12 -> 2033
M76: SUPPLY-SIDE | O76: DEMAND-SIDE
B77: BASE EXPANSION PLAN ($1,000s) | F77: ='AC Cost'!Y12 -> 510129.5562 | H77: ANNUAL GROWTH (MW) : | M77: =(IF('AC Cost'!$E$3=10,LoadForecast!$S$28,LoadForecast!$S$29))*1.12 -> 17.07776 | O77: =(IF('AC Cost'!$E$3=10,LoadForecast!$S$28,LoadForecast!$S$29)) -> 15.248
B78: 1 YEAR DEFERRAL CASE ($1,000s) | F78: ='AC Cost'!Z12 -> 503360.838 | H78: AVOIDED COSTS ($/kW) : | M78: =F79/M77 -> 396.3469552 | O78: =F79/O77 -> 443.9085898
B79: DIFFERENCE ($1000s) : | F79: =F77-F78 -> 6768.718177 | H79: LEVELIZED SAVINGS ($/kW-YR) : | M79: =PMT('AC Cost'!$N$10,'AC Cost'!$E$3,-M78) -> 50.0898612 | O79: =PMT('AC Cost'!$N$10,'AC Cost'!$E$3,-O78) -> 56.10064454
K80: @DIST SUB | M80: =M79/(1-'AC Cost'!$N$11) -> 52.45011644 | O80: =O79/(1-'AC Cost'!$N$11) -> 58.74413041
K81: @DIS SUB($/kW-mo) | M81: =M80/12 -> 4.370843036 | O81: =O80/12 -> 4.895344201
B85: EAST KENTUCKY POWER COOPERATIVE
F86: AVOIDED CAPACITY COSTS | K86: =K2 -> 2024 | M86: REVISED DATE: | O86: =O2 -> 2024-05-29
D88: DEM SIDE
B89: Year | D89: Levelized@DIST SUB
B90: =D4 -> 2024 | D90: =O9 -> 47.30034088
B91: =D11 -> 2025 | D91: =O16 -> 48.45252966
B92: =D18 -> 2026 | D92: =O23 -> 49.6328804
B93: =D25 -> 2027 | D93: =O30 -> 50.84208426
B94: =D32 -> 2028 | D94: =O37 -> 52.08084945
B95: =D46 -> 2029 | D95: =O51 -> 53.34990166
B96: =D54 -> 2030 | D96: =O59 -> 54.64998448
B97: =D61 -> 2031 | D97: =O66 -> 55.98185984
B98: =D68 -> 2032 | D98: =O73 -> 57.34630848
B99: =D75 -> 2033 | D99: =O80 -> 58.74413041
B101: Levelized Payment Variables
B102: Disc Rate | D102: ='AC Cost'!N11 -> 0.045
B103: Term | D103: ='AC Cost'!E3 -> 10
B104: Transm Loss | D104: 0.03093
